[Event "*** Titled Tuesday 3|2 Blitz"]
[Site "Chess.com"]
[Date "2015.04.07"]
[Round "2"]
[White "megarompa"]
[Black "Mazetovic"]
[Result "1-0"]
[WhiteElo "2692"]
[BlackElo "2444"]
[TimeControl "180+2"]
[EndTime "11:21:14 PDT"]
[Termination "megarompa won on time"]

1. d4 {[%clk 0:03:01.9]} 1... Nf6 {[%clk 0:02:46.3]} 2. Bg5 {[%clk 0:03:02.2]}
2... d5 {[%clk 0:02:41.8]} 3. Bxf6 {[%clk 0:03:03]} 3... exf6 {[%clk 0:02:41.2]}
4. e3 {[%clk 0:03:04.9]} 4... Bd6 {[%clk 0:02:38.8]} 5. c4 {[%clk 0:03:04.3]}
5... dxc4 {[%clk 0:02:38.5]} 6. Bxc4 {[%clk 0:03:04.5]} 6... O-O {[%clk
0:02:39.3]} 7. Ne2 {[%clk 0:03:04.4]} 7... f5 {[%clk 0:02:37]} 8. O-O {[%clk
0:03:05.4]} 8... Nd7 {[%clk 0:02:37.8]} 9. Nbc3 {[%clk 0:03:04.9]} 9... c6
{[%clk 0:02:27.1]} 10. Rc1 {[%clk 0:03:05.4]} 10... Nf6 {[%clk 0:02:21.6]} 11.
g3 {[%clk 0:03:00]} 11... g6 {[%clk 0:02:21.9]} 12. Nf4 {[%clk 0:02:59.7]} 12...
Kg7 {[%clk 0:02:19.2]} 13. a3 {[%clk 0:03:01.1]} 13... a6 {[%clk 0:02:20]} 14.
b4 {[%clk 0:03:01.3]} 14... h5 {[%clk 0:02:20.7]} 15. Qb3 {[%clk 0:02:57.6]}
15... h4 {[%clk 0:02:03.1]} 16. Rfd1 {[%clk 0:02:55.3]} 16... Ng4 {[%clk
0:01:55]} 17. d5 {[%clk 0:02:53.2]} 17... hxg3 {[%clk 0:01:44.6]} 18. hxg3
{[%clk 0:02:51.4]} 18... Rh8 {[%clk 0:01:44.3]} 19. Qb2 {[%clk 0:02:37.9]} 19...
Rh2 {[%clk 0:01:20.3]} 20. dxc6 {[%clk 0:02:06.1]} 20... Rxf2 {[%clk 0:00:40.6]}
21. Rd2 {[%clk 0:01:33.4]} 21... Rf3 {[%clk 0:00:20.1]} 22. Nce2+ {[%clk
0:01:11.7]} 22... f6 {[%clk 0:00:15.8]} 23. cxb7 {[%clk 0:01:09.9]} 23... Qh8
{[%clk 0:00:13.5]} 24. Qxf6+ {[%clk 0:00:28.4]} 24... Kxf6 {[%clk 0:00:09.6]}
25. Rxd6+ {[%clk 0:00:27.3]} 1-0

[Event "*** Titled Tuesday 3|2 Blitz"]
[Site "Chess.com"]
[Date "2015.04.07"]
[Round "2"]
[White "pedromartinez91"]
[Black "bugsbunny444"]
[Result "0-1"]
[WhiteElo "2167"]
[BlackElo "2297"]
[TimeControl "180+2"]
[EndTime "11:21:51 PDT"]
[Termination "bugsbunny444 won by resignation"]

1. e4 {[%clk 0:03:01]} 1... e6 {[%clk 0:03:00.3]} 2. d4 {[%clk 0:03:00.7]} 2...
d5 {[%clk 0:03:01.4]} 3. Nd2 {[%clk 0:03:01.5]} 3... Nf6 {[%clk 0:03:02.3]} 4.
e5 {[%clk 0:03:02.1]} 4... Nfd7 {[%clk 0:03:03.9]} 5. Bd3 {[%clk 0:03:03.1]}
5... c5 {[%clk 0:03:05.4]} 6. c3 {[%clk 0:03:04.1]} 6... Nc6 {[%clk 0:03:07]} 7.
Ne2 {[%clk 0:03:04.4]} 7... cxd4 {[%clk 0:03:08.5]} 8. cxd4 {[%clk 0:03:04.7]}
8... f6 {[%clk 0:03:10.2]} 9. exf6 {[%clk 0:03:05.6]} 9... Nxf6 {[%clk
0:03:12.1]} 10. Nf3 {[%clk 0:03:06]} 10... Bd6 {[%clk 0:03:13.7]} 11. O-O {[%clk
0:03:06.3]} 11... O-O {[%clk 0:03:15.3]} 12. Bf4 {[%clk 0:03:06.5]} 12... Bxf4
{[%clk 0:03:16.8]} 13. Nxf4 {[%clk 0:03:07.4]} 13... Qd6 {[%clk 0:03:18.7]} 14.
Ne2 {[%clk 0:03:00.5]} 14... Bd7 {[%clk 0:03:18.6]} 15. Ng3 {[%clk 0:03:00.3]}
15... Qb4 {[%clk 0:02:50.6]} 16. Rb1 {[%clk 0:02:58.5]} 16... Kh8 {[%clk
0:02:42.5]} 17. a3 {[%clk 0:02:57.8]} 17... Qb6 {[%clk 0:02:43.1]} 18. Bc2
{[%clk 0:02:57.6]} 18... Rae8 {[%clk 0:02:35.9]} 19. Ba4 {[%clk 0:02:55.4]}
19... Nb8 {[%clk 0:02:07.8]} 20. Ne5 {[%clk 0:02:50.2]} 20... Bxa4 {[%clk
0:02:02.9]} 21. Qxa4 {[%clk 0:02:50.5]} 21... Nc6 {[%clk 0:01:39.2]} 22. Nxc6
{[%clk 0:02:42]} 22... bxc6 {[%clk 0:01:38.8]} 23. Rfc1 {[%clk 0:02:41.2]} 23...
Rc8 {[%clk 0:01:30.6]} 24. Qd1 {[%clk 0:02:14.2]} 24... c5 {[%clk 0:00:47.8]}
25. dxc5 {[%clk 0:02:14.7]} 25... Rxc5 {[%clk 0:00:49.7]} 26. Rxc5 {[%clk
0:02:15]} 26... Qxc5 {[%clk 0:00:50.9]} 27. Qc1 {[%clk 0:02:11.1]} 27... Qb6
{[%clk 0:00:37.3]} 28. Qe3 {[%clk 0:02:08.6]} 28... Qxe3 {[%clk 0:00:31.6]} 29.
fxe3 {[%clk 0:02:09]} 29... Rc8 {[%clk 0:00:33.3]} 30. h3 {[%clk 0:02:00.6]}
30... Rc2 {[%clk 0:00:27]} 31. a4 {[%clk 0:01:58.9]} 31... h5 {[%clk 0:00:21.8]}
32. a5 {[%clk 0:01:59.2]} 32... h4 {[%clk 0:00:13.1]} 33. Nf1 {[%clk 0:01:59.8]}
33... Ne4 {[%clk 0:00:13.2]} 34. b4 {[%clk 0:01:55]} 34... Ra2 {[%clk
0:00:13.4]} 35. Rc1 {[%clk 0:01:52.9]} 35... Rb2 {[%clk 0:00:08.3]} 36. Rc7
{[%clk 0:01:53]} 36... Rxb4 {[%clk 0:00:07]} 37. Rxa7 {[%clk 0:01:52.8]} 37...
Rb1 {[%clk 0:00:07.9]} 38. Re7 {[%clk 0:01:45.6]} 38... Ng3 {[%clk 0:00:08.8]}
39. Rf7 {[%clk 0:01:46]} 39... Kg8 {[%clk 0:00:07]} 40. Rf3 {[%clk 0:01:46.2]}
40... Ra1 {[%clk 0:00:07.4]} 41. a6 {[%clk 0:01:46.8]} 41... Nxf1 {[%clk
0:00:04.6]} 42. Rxf1 {[%clk 0:01:47.3]} 42... Rxa6 {[%clk 0:00:05.7]} 43. Rf4
{[%clk 0:01:48.8]} 43... Ra3 {[%clk 0:00:06.9]} 44. Kf2 {[%clk 0:01:49.3]} 44...
Ra2+ {[%clk 0:00:05.2]} 45. Kf3 {[%clk 0:01:49.8]} 45... g6 {[%clk 0:00:04.7]}
46. Rxh4 {[%clk 0:01:50.1]} 46... Kg7 {[%clk 0:00:06.6]} 47. Ra4 {[%clk
0:01:50.3]} 47... Rxa4 {[%clk 0:00:07.2]} 48. g3 {[%clk 0:01:49]} 48... Ra3
{[%clk 0:00:08.2]} 49. h4 {[%clk 0:01:49.6]} 49... d4 {[%clk 0:00:09.4]} 0-1

[Event "*** Titled Tuesday 3|2 Blitz"]
[Site "Chess.com"]
[Date "2015.04.07"]
[Round "2"]
[White "Dlugy"]
[Black "Mugzyyy"]
[Result "1-0"]
[WhiteElo "2510"]
[BlackElo "2423"]
[TimeControl "180+2"]
[EndTime "11:22:03 PDT"]
[Termination "Dlugy won by resignation"]

1. d4 {[%clk 0:03:01.9]} 1... Nf6 {[%clk 0:02:58.9]} 2. c4 {[%clk 0:03:02.3]}
2... b6 {[%clk 0:03:00.5]} 3. f3 {[%clk 0:03:00.1]} 3... Nc6 {[%clk 0:03:00.3]}
4. d5 {[%clk 0:02:59.9]} 4... Ne5 {[%clk 0:03:01.2]} 5. e4 {[%clk 0:03:01.5]}
5... e6 {[%clk 0:03:02.7]} 6. Nc3 {[%clk 0:02:49.4]} 6... Bc5 {[%clk 0:03:02.7]}
7. Bg5 {[%clk 0:02:47.9]} 7... h6 {[%clk 0:03:02.3]} 8. Bh4 {[%clk 0:02:47.9]}
8... g5 {[%clk 0:03:03.3]} 9. Bf2 {[%clk 0:02:47.7]} 9... Ba6 {[%clk 0:02:59.2]}
10. Qa4 {[%clk 0:02:40.7]} 10... Qc8 {[%clk 0:02:49.9]} 11. Nh3 {[%clk
0:02:36.1]} 11... g4 {[%clk 0:02:47.1]} 12. Bxc5 {[%clk 0:02:21.5]} 12... bxc5
{[%clk 0:02:38.9]} 13. fxg4 {[%clk 0:02:21.5]} 13... Nfxg4 {[%clk 0:02:38.6]}
14. b3 {[%clk 0:02:10.5]} 14... Qb7 {[%clk 0:02:33.5]} 15. Be2 {[%clk
0:02:10.6]} 15... Rg8 {[%clk 0:02:24.5]} 16. O-O {[%clk 0:02:10.4]} 16... Ne3
{[%clk 0:02:20.4]} 17. Rf2 {[%clk 0:02:11.6]} 17... Nc2 {[%clk 0:02:21.5]} 18.
Raf1 {[%clk 0:02:08.4]} 18... Nd4 {[%clk 0:02:22.7]} 19. Bh5 {[%clk 0:02:04.1]}
19... Rg7 {[%clk 0:02:15.7]} 20. Qa3 {[%clk 0:02:00.3]} 20... d6 {[%clk
0:02:09]} 21. Qc1 {[%clk 0:01:59.6]} 21... O-O-O {[%clk 0:02:07.3]} 22. Qxh6
{[%clk 0:01:59.8]} 22... Rdg8 {[%clk 0:02:08.1]} 23. Kh1 {[%clk 0:01:56]} 23...
Kb8 {[%clk 0:02:07.7]} 24. Bxf7 {[%clk 0:01:53.9]} 24... Nxf7 {[%clk 0:01:39.7]}
25. Rxf7 {[%clk 0:01:54.7]} 25... Rxf7 {[%clk 0:01:39.3]} 26. Rxf7 {[%clk
0:01:55.6]} 26... Qb4 {[%clk 0:01:41]} 27. Qd2 {[%clk 0:01:42.1]} 27... exd5
{[%clk 0:01:39.4]} 28. exd5 {[%clk 0:01:42.7]} 28... Bc8 {[%clk 0:01:38.7]} 29.
Nf4 {[%clk 0:01:43.4]} 29... Re8 {[%clk 0:01:24.3]} 30. h3 {[%clk 0:01:40.8]}
30... Nf5 {[%clk 0:01:23.4]} 31. Kh2 {[%clk 0:01:39.6]} 31... Ne3 {[%clk
0:01:24.4]} 32. Nd3 {[%clk 0:01:39.3]} 32... Qa5 {[%clk 0:01:23.2]} 33. Rf3
{[%clk 0:01:38.3]} 33... Nf5 {[%clk 0:01:22]} 34. Ne4 {[%clk 0:01:35.3]} 34...
Qa3 {[%clk 0:01:18]} 35. Ng3 {[%clk 0:01:31.2]} 35... Nd4 {[%clk 0:01:18.7]} 36.
Rf2 {[%clk 0:01:30]} 36... Rg8 {[%clk 0:01:16]} 37. Nf4 {[%clk 0:01:28.6]} 37...
a5 {[%clk 0:01:14.3]} 38. Nge2 {[%clk 0:01:20.4]} 38... Nf5 {[%clk 0:01:05.7]}
39. Nc3 {[%clk 0:01:21.3]} 39... Nd4 {[%clk 0:00:57.3]} 40. Nb1 {[%clk 0:01:19]}
40... Qb4 {[%clk 0:00:57.6]} 41. Qxb4+ {[%clk 0:01:20.6]} 41... axb4 {[%clk
0:00:58.9]} 42. Nd2 {[%clk 0:01:22.2]} 42... Kb7 {[%clk 0:01:00.1]} 43. g4
{[%clk 0:01:23]} 43... Bd7 {[%clk 0:00:59.8]} 44. Ne4 {[%clk 0:01:23.4]} 44...
Kb6 {[%clk 0:00:58.8]} 45. Nf6 {[%clk 0:01:24.5]} 45... Rg7 {[%clk 0:00:59.5]}
46. Nxd7+ {[%clk 0:01:23.1]} 46... Rxd7 {[%clk 0:01:00.7]} 47. Ne6 {[%clk
0:01:25]} 47... c6 {[%clk 0:01:01.4]} 48. g5 {[%clk 0:01:23.2]} 48... cxd5
{[%clk 0:01:00.7]} 49. cxd5 {[%clk 0:01:24.1]} 49... Re7 {[%clk 0:00:53.8]} 50.
g6 {[%clk 0:01:20.4]} 50... Nxe6 {[%clk 0:00:51.1]} 51. dxe6 {[%clk 0:01:21.3]}
51... Rg7 {[%clk 0:00:51]} 52. Re2 {[%clk 0:01:20.1]} 1-0

[Event "*** Titled Tuesday 3|2 Blitz"]
[Site "Chess.com"]
[Date "2015.04.07"]
[Round "2"]
[White "AnastasiaProtopopova"]
[Black "GMBenjaminBok"]
[Result "0-1"]
[WhiteElo "2035"]
[BlackElo "2430"]
[TimeControl "180+2"]
[EndTime "11:22:14 PDT"]
[Termination "GMBenjaminBok won by resignation"]

1. Nf3 {[%clk 0:02:26.1]} 1... g6 {[%clk 0:03:00]} 2. c4 {[%clk 0:02:26.3]} 2...
Bg7 {[%clk 0:03:00.6]} 3. Nc3 {[%clk 0:02:26.7]} 3... c5 {[%clk 0:03:01]} 4. g3
{[%clk 0:02:22.9]} 4... Nc6 {[%clk 0:03:01.8]} 5. Bg2 {[%clk 0:02:23.9]} 5... e6
{[%clk 0:03:03.2]} 6. O-O {[%clk 0:02:24.2]} 6... Nge7 {[%clk 0:03:04.2]} 7. e3
{[%clk 0:02:22.2]} 7... O-O {[%clk 0:03:03.3]} 8. d4 {[%clk 0:02:22]} 8... cxd4
{[%clk 0:03:04.4]} 9. exd4 {[%clk 0:02:22.5]} 9... d5 {[%clk 0:03:03.5]} 10. Be3
{[%clk 0:01:54.7]} 10... dxc4 {[%clk 0:02:57.6]} 11. Ne2 {[%clk 0:01:48.3]}
11... a6 {[%clk 0:02:43.6]} 12. a4 {[%clk 0:01:46.9]} 12... Bd7 {[%clk
0:02:40.6]} 13. Nc3 {[%clk 0:01:34.6]} 13... Na5 {[%clk 0:02:32.1]} 14. Ne5
{[%clk 0:01:31]} 14... Rc8 {[%clk 0:02:27.9]} 15. Qe2 {[%clk 0:01:14.7]} 15...
Bc6 {[%clk 0:02:03.2]} 16. Rfd1 {[%clk 0:00:50.4]} 16... Bxg2 {[%clk 0:02:02.6]}
17. Kxg2 {[%clk 0:00:51.1]} 17... Nd5 {[%clk 0:01:55.7]} 18. Ne4 {[%clk
0:00:45.7]} 18... Nb3 {[%clk 0:01:53.8]} 19. Rab1 {[%clk 0:00:44.7]} 19... b5
{[%clk 0:01:53.8]} 20. axb5 {[%clk 0:00:44.1]} 20... axb5 {[%clk 0:01:55.7]} 21.
Nc3 {[%clk 0:00:33.7]} 21... b4 {[%clk 0:01:43.5]} 22. Ne4 {[%clk 0:00:31.5]}
22... Qc7 {[%clk 0:01:35.8]} 23. Nd2 {[%clk 0:00:28.8]} 23... Nxd2 {[%clk
0:01:34]} 24. Bxd2 {[%clk 0:00:26.8]} 24... c3 {[%clk 0:01:33.4]} 25. bxc3
{[%clk 0:00:26.9]} 25... bxc3 {[%clk 0:01:34.5]} 26. Rdc1 {[%clk 0:00:23.9]}
26... Rb8 {[%clk 0:00:58.4]} 27. Be1 {[%clk 0:00:13.9]} 27... Rfc8 {[%clk
0:00:56]} 28. Rxb8 {[%clk 0:00:13.9]} 28... Qxb8 {[%clk 0:00:52.7]} 29. Qf3
{[%clk 0:00:11.9]} 29... Bxe5 {[%clk 0:00:50.3]} 30. dxe5 {[%clk 0:00:12.4]}
30... Qxe5 {[%clk 0:00:51.1]} 31. Qd3 {[%clk 0:00:07.9]} 31... Qg5 {[%clk
0:00:47.1]} 32. Bd2 {[%clk 0:00:04.1]} 32... Qxd2 {[%clk 0:00:45.5]} 33. Qxd2
{[%clk 0:00:04.5]} 33... cxd2 {[%clk 0:00:46.6]} 34. Rxc8+ {[%clk 0:00:06.1]}
34... Kg7 {[%clk 0:00:48.1]} 0-1

[Event "*** Titled Tuesday 3|2 Blitz"]
[Site "Chess.com"]
[Date "2015.04.07"]
[Round "2"]
[White "chesstatour"]
[Black "BjarkeSahl"]
[Result "0-1"]
[WhiteElo "1954"]
[BlackElo "2048"]
[TimeControl "180+2"]
[EndTime "11:22:22 PDT"]
[Termination "BjarkeSahl won by resignation"]

1. d4 {[%clk 0:03:01.9]} 1... f5 {[%clk 0:02:57.4]} 2. Bg5 {[%clk 0:02:57.1]}
2... d5 {[%clk 0:02:55.6]} 3. Nc3 {[%clk 0:02:55.8]} 3... c6 {[%clk 0:02:55.9]}
4. Nf3 {[%clk 0:02:49.6]} 4... Be6 {[%clk 0:02:52.8]} 5. e3 {[%clk 0:02:44.4]}
5... Nd7 {[%clk 0:02:53.9]} 6. Bd3 {[%clk 0:02:44.9]} 6... Ngf6 {[%clk
0:02:48.3]} 7. Bxf6 {[%clk 0:02:39.8]} 7... Nxf6 {[%clk 0:02:48.4]} 8. Ne5
{[%clk 0:02:33.6]} 8... g6 {[%clk 0:02:42.1]} 9. Ne2 {[%clk 0:02:31.7]} 9... Nd7
{[%clk 0:02:41]} 10. Nf4 {[%clk 0:02:27.5]} 10... Bf7 {[%clk 0:02:41.5]} 11.
Nxf7 {[%clk 0:02:22.7]} 11... Kxf7 {[%clk 0:02:42]} 12. h4 {[%clk 0:02:16.8]}
12... h5 {[%clk 0:02:33.2]} 13. f3 {[%clk 0:02:12.9]} 13... Bh6 {[%clk
0:02:32.1]} 14. g4 {[%clk 0:02:09.8]} 14... Bxf4 {[%clk 0:02:27.6]} 15. exf4
{[%clk 0:02:07.9]} 15... e6 {[%clk 0:02:29.2]} 16. Qe2 {[%clk 0:01:42.7]} 16...
hxg4 {[%clk 0:02:02.5]} 17. fxg4 {[%clk 0:01:33.4]} 17... Rxh4 {[%clk
0:02:01.6]} 18. O-O-O {[%clk 0:01:33.3]} 18... Qf6 {[%clk 0:02:02.7]} 19. g5
{[%clk 0:01:30.9]} 19... Qh8 {[%clk 0:02:01.9]} 20. Qf3 {[%clk 0:01:04.1]} 20...
Rg8 {[%clk 0:01:57.7]} 21. Rxh4 {[%clk 0:01:02.6]} 21... Qxh4 {[%clk 0:01:57.3]}
22. Rh1 {[%clk 0:01:02.3]} 22... Qg4 {[%clk 0:01:55.4]} 23. Qxg4 {[%clk
0:00:57.4]} 23... fxg4 {[%clk 0:01:56.3]} 24. Rg1 {[%clk 0:00:58.3]} 24... Rh8
{[%clk 0:01:53.3]} 25. Rxg4 {[%clk 0:00:55.8]} 25... Rh2 {[%clk 0:01:54.1]} 26.
b3 {[%clk 0:00:46.4]} 26... Nb6 {[%clk 0:01:51]} 27. Rg3 {[%clk 0:00:34.9]}
27... Nc8 {[%clk 0:01:46]} 28. Kb2 {[%clk 0:00:32.1]} 28... Nd6 {[%clk 0:01:45]}
29. Rf3 {[%clk 0:00:23.7]} 29... b5 {[%clk 0:01:42.2]} 30. a3 {[%clk 0:00:18.3]}
30... a5 {[%clk 0:01:42.6]} 31. Kc3 {[%clk 0:00:13.6]} 31... Ne8 {[%clk
0:01:30.1]} 32. Kb2 {[%clk 0:00:11.2]} 32... Ng7 {[%clk 0:01:30.8]} 33. Kc3
{[%clk 0:00:09.4]} 33... Nh5 {[%clk 0:01:30.5]} 34. b4 {[%clk 0:00:03.9]} 34...
a4 {[%clk 0:01:30.2]} 35. Kb2 {[%clk 0:00:04.7]} 35... Rh4 {[%clk 0:01:31.2]}
36. Be2 {[%clk 0:00:04.5]} 36... Rxf4 {[%clk 0:01:31.2]} 37. Rc3 {[%clk
0:00:03]} 37... Ng3 {[%clk 0:01:29]} 38. Bd3 {[%clk 0:00:03.7]} 38... Rxd4
{[%clk 0:01:26.8]} 39. Rxc6 {[%clk 0:00:04.8]} 39... Nf5 {[%clk 0:01:25.8]} 40.
Rc7+ {[%clk 0:00:06]} 40... Ke8 {[%clk 0:01:26.8]} 41. Rb7 {[%clk 0:00:07.6]}
41... e5 {[%clk 0:01:25.6]} 42. Bxf5 {[%clk 0:00:06.6]} 42... gxf5 {[%clk
0:01:26.3]} 43. Rxb5 {[%clk 0:00:08.5]} 43... f4 {[%clk 0:01:25.2]} 44. Rb6
{[%clk 0:00:07.3]} 44... f3 {[%clk 0:01:23.5]} 45. Rf6 {[%clk 0:00:07.6]} 45...
e4 {[%clk 0:01:22.2]} 46. g6 {[%clk 0:00:07.8]} 46... Rd1 {[%clk 0:01:23.6]} 47.
g7 {[%clk 0:00:06.7]} 47... Rg1 {[%clk 0:01:25]} 48. Rf8+ {[%clk 0:00:07.5]}
48... Ke7 {[%clk 0:01:26.2]} 49. g8=Q {[%clk 0:00:08.3]} 49... Rxg8 {[%clk
0:01:27.1]} 50. Rxg8 {[%clk 0:00:10.2]} 50... f2 {[%clk 0:01:28.1]} 51. Rg7+
{[%clk 0:00:09.9]} 51... Ke6 {[%clk 0:01:29]} 52. Rg6+ {[%clk 0:00:10.6]} 52...
Kf7 {[%clk 0:01:27.7]} 53. Rd6 {[%clk 0:00:03.4]} 53... f1=Q {[%clk 0:01:26.8]}
54. Rxd5 {[%clk 0:00:05.3]} 54... e3 {[%clk 0:01:26.9]} 0-1

[Event "*** Titled Tuesday 3|2 Blitz"]
[Site "Chess.com"]
[Date "2015.04.07"]
[Round "2"]
[White "brauliocuarta"]
[Black "AndrewMcStone"]
[Result "1-0"]
[WhiteElo "2029"]
[BlackElo "1931"]
[TimeControl "180+2"]
[EndTime "11:22:28 PDT"]
[Termination "brauliocuarta won by resignation"]

1. d4 {[%clk 0:03:01.9]} 1... Nf6 {[%clk 0:03:00.8]} 2. c4 {[%clk 0:03:02.7]}
2... Nc6 {[%clk 0:03:02.2]} 3. Nf3 {[%clk 0:02:56.9]} 3... e6 {[%clk 0:03:03.1]}
4. Nc3 {[%clk 0:02:57.5]} 4... Bb4 {[%clk 0:03:03.8]} 5. Bg5 {[%clk 0:02:44]}
5... h6 {[%clk 0:03:04]} 6. Bxf6 {[%clk 0:02:42.3]} 6... Qxf6 {[%clk 0:03:04.6]}
7. Rc1 {[%clk 0:02:43.5]} 7... O-O {[%clk 0:02:56.1]} 8. e3 {[%clk 0:02:39]}
8... e5 {[%clk 0:02:50.7]} 9. dxe5 {[%clk 0:02:37]} 9... Nxe5 {[%clk 0:02:49.7]}
10. Be2 {[%clk 0:02:38.5]} 10... d6 {[%clk 0:02:41.4]} 11. O-O {[%clk
0:02:37.9]} 11... Bxc3 {[%clk 0:02:31.4]} 12. Rxc3 {[%clk 0:02:37.4]} 12... b6
{[%clk 0:02:07]} 13. Nxe5 {[%clk 0:02:18.8]} 13... dxe5 {[%clk 0:01:50.3]} 14.
Bf3 {[%clk 0:02:09.3]} 14... Rb8 {[%clk 0:01:49.9]} 15. c5 {[%clk 0:02:04.1]}
15... Be6 {[%clk 0:01:41.6]} 16. b3 {[%clk 0:02:01.5]} 16... Rfd8 {[%clk
0:01:38.2]} 17. Qc2 {[%clk 0:01:52.4]} 17... Bf5 {[%clk 0:01:07.7]} 18. e4
{[%clk 0:01:42.8]} 18... Be6 {[%clk 0:00:57.9]} 19. cxb6 {[%clk 0:01:35.6]}
19... cxb6 {[%clk 0:00:57.2]} 20. Rd1 {[%clk 0:01:30.1]} 20... Rbc8 {[%clk
0:00:44.9]} 21. Rxd8+ {[%clk 0:01:22.4]} 21... Qxd8 {[%clk 0:00:46.8]} 22. h3
{[%clk 0:01:14.2]} 22... Rxc3 {[%clk 0:00:38.9]} 23. Qxc3 {[%clk 0:01:14.7]}
23... Qd4 {[%clk 0:00:34.6]} 24. Qxd4 {[%clk 0:01:07.4]} 24... exd4 {[%clk
0:00:36.5]} 25. Kf1 {[%clk 0:01:08.1]} 25... Bc8 {[%clk 0:00:24.5]} 26. Ke2
{[%clk 0:01:06.2]} 26... Ba6+ {[%clk 0:00:25.1]} 27. Kd2 {[%clk 0:01:07.7]}
27... Kf8 {[%clk 0:00:23.3]} 28. Be2 {[%clk 0:01:05.8]} 28... Bb7 {[%clk
0:00:24.5]} 29. f3 {[%clk 0:00:59.6]} 29... Ke7 {[%clk 0:00:23.9]} 30. Bc4
{[%clk 0:00:58.8]} 30... Kd6 {[%clk 0:00:18.9]} 31. Bxf7 {[%clk 0:00:58.1]}
31... Ke5 {[%clk 0:00:20.1]} 32. g3 {[%clk 0:00:56.3]} 32... g5 {[%clk
0:00:20.8]} 33. Kd3 {[%clk 0:00:48.1]} 33... Ba6+ {[%clk 0:00:18]} 34. Bc4
{[%clk 0:00:47.4]} 34... b5 {[%clk 0:00:18.9]} 35. Bg8 {[%clk 0:00:46.1]} 35...
b4+ {[%clk 0:00:18.9]} 36. Bc4 {[%clk 0:00:45.6]} 36... Bc8 {[%clk 0:00:20.2]}
37. f4+ {[%clk 0:00:44.5]} 37... gxf4 {[%clk 0:00:20.9]} 38. gxf4+ {[%clk
0:00:45.1]} 38... Kxf4 {[%clk 0:00:22.3]} 39. Kxd4 {[%clk 0:00:43.3]} 39... Bxh3
{[%clk 0:00:23.7]} 40. e5 {[%clk 0:00:40.6]} 40... Kg5 {[%clk 0:00:22.4]} 41.
Kc5 {[%clk 0:00:36.7]} 41... Kf5 {[%clk 0:00:18.5]} 42. e6 {[%clk 0:00:34.6]}
42... Kf6 {[%clk 0:00:19.2]} 43. Kd6 {[%clk 0:00:35]} 43... h5 {[%clk
0:00:16.9]} 44. e7 {[%clk 0:00:35.3]} 1-0

[Event "*** Titled Tuesday 3|2 Blitz"]
[Site "Chess.com"]
[Date "2015.04.07"]
[Round "2"]
[White "lukas_111111"]
[Black "alturas_pacificas"]
[Result "0-1"]
[WhiteElo "2316"]
[BlackElo "2119"]
[TimeControl "180+2"]
[EndTime "11:23:12 PDT"]
[Termination "alturas_pacificas won by resignation"]

1. e4 {[%clk 0:02:35.8]} 1... e5 {[%clk 0:03:00]} 2. Nf3 {[%clk 0:02:36.7]} 2...
Nf6 {[%clk 0:03:00.6]} 3. d4 {[%clk 0:02:36.4]} 3... Nxe4 {[%clk 0:02:59.1]} 4.
dxe5 {[%clk 0:02:35.5]} 4... d5 {[%clk 0:02:59.6]} 5. Nbd2 {[%clk 0:02:34.7]}
5... Nxd2 {[%clk 0:02:58.5]} 6. Qxd2 {[%clk 0:02:26.3]} 6... c6 {[%clk 0:02:58]}
7. Bd3 {[%clk 0:02:25.6]} 7... Be7 {[%clk 0:02:57.3]} 8. O-O {[%clk 0:02:22.9]}
8... Nd7 {[%clk 0:02:57.6]} 9. Qf4 {[%clk 0:02:22.9]} 9... Nc5 {[%clk 0:02:55]}
10. Qg3 {[%clk 0:02:15.7]} 10... Ne6 {[%clk 0:02:43.4]} 11. Bd2 {[%clk
0:02:02.3]} 11... Bd7 {[%clk 0:02:41.7]} 12. Rad1 {[%clk 0:02:02.1]} 12... Qc7
{[%clk 0:02:29.8]} 13. Rfe1 {[%clk 0:02:00.4]} 13... O-O-O {[%clk 0:02:26.2]}
14. h4 {[%clk 0:01:58.9]} 14... Rdg8 {[%clk 0:02:20.6]} 15. Ng5 {[%clk
0:01:51.4]} 15... Bxg5 {[%clk 0:02:11.2]} 16. hxg5 {[%clk 0:01:50.9]} 16... Qd8
{[%clk 0:01:46]} 17. c4 {[%clk 0:01:42.3]} 17... d4 {[%clk 0:01:37.5]} 18. Bf5
{[%clk 0:01:30]} 18... h5 {[%clk 0:01:35.4]} 19. b4 {[%clk 0:01:17.2]} 19... h4
{[%clk 0:01:30.9]} 20. Qg4 {[%clk 0:01:17.9]} 20... h3 {[%clk 0:01:25.6]} 21.
gxh3 {[%clk 0:01:17.5]} 21... g6 {[%clk 0:01:11]} 22. Bb1 {[%clk 0:01:08.5]}
22... Rh5 {[%clk 0:01:04.9]} 23. Qg3 {[%clk 0:00:16.1]} 23... Nxg5 {[%clk
0:01:01.9]} 24. h4 {[%clk 0:00:15.8]} 24... Nh3+ {[%clk 0:00:40.1]} 25. Kg2
{[%clk 0:00:13]} 25... Rxh4 {[%clk 0:00:36.8]} 26. Re4 {[%clk 0:00:13.9]} 26...
Rgh8 {[%clk 0:00:27.5]} 27. Rde1 {[%clk 0:00:14.2]} 27... c5 {[%clk 0:00:21.8]}
28. Rxh4 {[%clk 0:00:12.5]} 28... Rxh4 {[%clk 0:00:19.3]} 29. f3 {[%clk
0:00:11.9]} 29... Rh5 {[%clk 0:00:16]} 30. Rh1 {[%clk 0:00:09.9]} 30... Qh8
{[%clk 0:00:07.2]} 31. Rh2 {[%clk 0:00:10.5]} 31... Be6 {[%clk 0:00:07.1]} 32.
Be4 {[%clk 0:00:10.4]} 32... cxb4 {[%clk 0:00:07.7]} 33. Bxb4 {[%clk 0:00:09.8]}
33... Qh6 {[%clk 0:00:08.8]} 34. f4 {[%clk 0:00:06.3]} 34... Nxf4+ {[%clk
0:00:09]} 35. Kg1 {[%clk 0:00:06.1]} 35... Rxh2 {[%clk 0:00:09.8]} 36. Qxh2
{[%clk 0:00:07.2]} 36... Qxh2+ {[%clk 0:00:11.1]} 37. Kxh2 {[%clk 0:00:08.4]}
37... g5 {[%clk 0:00:10.7]} 38. Bd2 {[%clk 0:00:08.3]} 38... Bxc4 {[%clk
0:00:11.5]} 39. Bf5+ {[%clk 0:00:08.6]} 39... Kc7 {[%clk 0:00:11.4]} 40. Kg3
{[%clk 0:00:09.7]} 40... Bxa2 {[%clk 0:00:12.1]} 41. Kg4 {[%clk 0:00:10.5]}
41... Be6 {[%clk 0:00:12.6]} 42. Kxg5 {[%clk 0:00:11.2]} 42... Bxf5 {[%clk
0:00:13]} 43. Kxf5 {[%clk 0:00:10]} 43... Ne6 {[%clk 0:00:14.5]} 44. Kf6 {[%clk
0:00:10.6]} 44... Nd8 {[%clk 0:00:15.9]} 45. Bb4 {[%clk 0:00:10.6]} 45... Kd7
{[%clk 0:00:16.5]} 46. Be7 {[%clk 0:00:10.7]} 46... Nc6 {[%clk 0:00:17.5]} 47.
Bd6 {[%clk 0:00:07.5]} 47... d3 {[%clk 0:00:18.6]} 48. Kxf7 {[%clk 0:00:07.6]}
48... d2 {[%clk 0:00:20.1]} 0-1